[Event "WSTCC-65 2024"]
[Site "Krakow"]
[Date "2024.07.03"]
[Round "2.10"]
[White "Kusina, Jan"]
[Black "Lomer, Edmund"]
[Result "1-0"]
[ECO "E16"]
[WhiteElo "1969"]
[BlackElo "1943"]
[Annotator "NA RC"]
[PlyCount "131"]
[EventDate "2024.07.01"]
[EventType "team-tourn"]
[EventCountry "POL"]
[SourceTitle "playchess.com"]
[Source "ChessBase"]
[SourceQuality "1"]
[TimeControl "40/5400+30:1800+30"]

1. d4 {[%emt 0:00:04]} Nf6 {[%emt 0:00:12]} 2. c4 {[%emt 0:00:15]} e6 {[%emt 0:00:12]} 3. Nf3 {[%emt 0:00:13]} Bb4+ {[%emt 0:00:16]} 4. Bd2 {[%emt 0:00:28]} Qe7 {[%emt 0:00:20]} 5. a3 {[%emt 0:01:15]} Bxd2+ {[%emt 0:00:12]} 6. Nbxd2 {[%emt 0:00:18]} b6 {[%emt 0:00:23]} 7. e3 {[%emt 0:00:31]} Bb7 {[%emt 0:00:15]} 8. Bd3 {[%emt 0:00:19]} O-O {[%emt 0:00:31]} 9. O-O {[%emt 0:00:16]} d6 {[%emt 0:00:29]} 10. e4 {[%emt 0:04:34]} Nbd7 {[%emt 0:01:09]} 11. Qc2 {[%emt 0:02:32]} e5 {[%emt 0:01:35]} 12. d5 {[%emt 0:00:17]} Nc5 {[%emt 0:01:11]} 13. Be2 {[%emt 0:00:47]} a5 {[%emt 0:01:40]} 14. b4 {[%emt 0:00:37]} axb4 {[%emt 0:00:20]} 15. axb4 {[%emt 0:00:02]} Ncd7 {[%emt 0:00:43]} 16. Nb3 {[%emt 0:01:21]} g6 {[%emt 0:01:07]} 17. Rfc1 {[%emt 0:01:49]} Rxa1 {[%emt 0:13:05]} 18. Rxa1 {[%emt 0:00:10]} Ra8 {[%emt 0:00:28]} 19. Rxa8+ {[%emt 0:01:48]} Bxa8 {[%emt 0:00:15]} 20. Nfd2 {[%emt 0:00:18]} Qf8 {[%emt 0:02:05]} 21. Qa2 {[%emt 0:05:02]} Qb8 22. Qa3 {[%emt 0:04:16]} Bb7 {[%emt 0:03:27]} 23. c5 {[%emt 0:03:27]} bxc5 {[%emt 0:00:49]} 24. bxc5 {[%emt 0:00:13]} Bc8 {[%emt 0:06:01]} 25. h3 {[%emt 0:02:01]} Kg7 {[%emt 0:06:50]} 26. Bd3 {[%emt 0:04:01]} dxc5 {[%emt 0:05:35]} 27. Nxc5 {[%emt 0:01:24]} Qb6 {[%emt 0:04:00]} 28. Ncb3 {[%emt 0:03:04]} Bb7 {[%emt 0:05:43]} 29. Nc4 {[%emt 0:07:33]} Qa6 {[%emt 0:00:57]} 30. Qb4 {[%emt 0:02:23]} Qa7 {[%emt 0:03:00]} 31. Nca5 {[%emt 0:09:17]} Ba8 {[%emt 0:04:30]} 32. Qc3 {[%emt 0:15:03]} h5 {[%emt 0:07:25]} 33. g3 {[%emt 0:08:24]} Qb8 {[%emt 0:03:17]} 34. Kg2 {[%emt 0:03:17]} Qb6 {[%emt 0:01:31]} 35. Bc2 {[%emt 0:01:55]} Qa7 {[%emt 0:01:12]} 36. Nc4 {[%emt 0:02:21]} Qa2 {[%emt 0:00:21]} 37. Nca5 {[%emt 0:00:17]} Qa4 {[%emt 0:04:34]} 38. Nd2 {[%emt 0:03:58]} Qd4 {[%emt 0:02:21]} 39. Qxd4 {[%emt 0:01:04]} exd4 {[%emt 0:00:03]} 40. Ndb3 {[%emt 0:00:32]} Nxd5 {[%emt 0:02:24]} 41. exd5 {[%emt 0:30:33]} Bxd5+ {[%emt 0:30:01]} 42. Kf1 {[%emt 0:03:04]} c5 {[%emt 0:00:15]} 43. Ke2 {[%emt 0:01:27]} Kf6 {[%emt 0:03:06]} 44. Bd3 {[%emt 0:03:37]} g5 {[%emt 0:02:27]} 45. Bb5 {[%emt 0:01:08]} Ne5 {[%emt 0:09:07]} 46. Nxc5 {[%emt 0:00:36]} Bg2 {[%emt 0:00:55]} 47. Nd7+ {[%emt 0:04:41]} Nxd7 {[%emt 0:00:59]} 48. Bxd7 {[%emt 0:00:10]} h4 {[%emt 0:02:00]} 49. Nc4 {[%emt 0:00:00]} hxg3 {[%emt 0:00:00]} 50. fxg3 Ke7 51. Bc8 {[%emt 0:00:00]} Kf6 {[%emt 0:00:00]} 52. Kd3 {[%emt 0:00:00]} Kg6 {[%emt 0:00:00]} 53. Ne5+ {[%emt 0:00:00]} Kg7 {[%emt 0:00:00]} 54. Kxd4 {[%emt 0:00:00]} f6 {[%emt 0:00:00]} 55. Nc4 {[%emt 0:00:00]} Kg6 {[%emt 0:00:00]} 56. Ne3 {[%emt 0:00:00]} Bc6 {[%emt 0:00:00]} 57. Bf5+ {[%emt 0:00:00]} Kg7 {[%emt 0:00:00]} 58. Kc5 {[%emt 0:00:00]} Ba4 {[%emt 0:00:00]} 59. Kd6 {[%emt 0:00:00]} Bb5 {[%emt 0:00:00]} 60. Ke7 {[%emt 0:00:00]} Ba4 {[%emt 0:00:00]} 61. Ng4 {[%emt 0:00:00]} Bb5 {[%emt 0:00:00]} 62. Nxf6 {[%emt 0:00:00]} Bf1 {[%emt 0:00:00]} 63. Ne8+ {[%emt 0:00:00]} Kh6 {[%emt 0:00:00]} 64. Kf6 {[%emt 0:00:00]} Be2 {[%emt 0:00:00]} 65. Nd6 {[%emt 0:00:00]} Kh5 {[%emt 0:00:00]} 66. Bg6+ {[%emt 0:00:00]} 1-0

[Event "WSTCC-65 2024"]
[Site "Krakow"]
[Date "2024.07.03"]
[Round "2.11"]
[White "Hammar, Bengt"]
[Black "Roos, Louis"]
[Result "0-1"]
[ECO "C11"]
[WhiteElo "2127"]
[BlackElo "2288"]
[Annotator "RC"]
[PlyCount "96"]
[EventDate "2024.07.01"]
[EventType "team-tourn"]
[EventCountry "POL"]
[SourceTitle "playchess.com"]
[Source "ChessBase"]
[SourceQuality "1"]
[TimeControl "40/5400+30:1800+30"]

1. e4 {[%emt 0:00:24]} e6 {[%emt 0:00:42]} 2. d4 {[%emt 0:01:58]} d5 {[%emt 0:00:07]} 3. Nc3 {[%emt 0:00:28]} Nf6 {[%emt 0:02:09]} 4. Bg5 {[%emt 0:01:57]} dxe4 {[%emt 0:00:29]} 5. Nxe4 {[%emt 0:00:12]} Be7 {[%emt 0:00:14]} 6. Bxf6 {[%emt 0:01:00]} gxf6 {[%emt 0:00:08]} 7. Nf3 {[%emt 0:02:19]} b6 {[%emt 0:07:53]} 8. g3 {[%emt 0:08:17]} Bb7 {[%emt 0:03:37]} 9. Qe2 {[%emt 0:01:34]} Qd5 {[%emt 0:20:14]} 10. Qb5+ {[%emt 0:05:50]} Nd7 {[%emt 0:03:54]} 11. Qxd5 {[%emt 0:00:55]} Bxd5 {[%emt 0:00:30]} 12. Ned2 {[%emt 0:03:49]} c5 {[%emt 0:03:47]} 13. dxc5 {[%emt 0:00:31]} Bxc5 {[%emt 0:09:08]} 14. Bg2 {[%emt 0:05:11]} Ne5 {[%emt 0:07:14]} 15. O-O {[%emt 0:03:53]} O-O-O {[%emt 0:09:58]} 16. Rad1 {[%emt 0:04:54]} Bxf3 {[%emt 0:13:07]} 17. Nxf3 {[%emt 0:01:54]} Rxd1 {[%emt 0:02:06]} 18. Rxd1 {[%emt 0:00:08]} Ng4 {[%emt 0:00:12]} 19. Rf1 {[%emt 0:15:05]} Rd8 {[%emt 0:00:13]} 20. Bh3 {[%emt 0:01:11]} Ne5 {[%emt 0:00:20]} 21. Nxe5 {[%emt 0:02:11]} fxe5 {[%emt 0:00:18]} 22. Bg4 {[%emt 0:00:47]} Rd2 {[%emt 0:00:54]} 23. Bd1 {[%emt 0:00:52]} e4 {[%emt 0:01:03]} 24. a3 {[%emt 0:02:33]} a5 {[%emt 0:00:48]} 25. b4 {[%emt 0:04:27]} axb4 {[%emt 0:00:39]} 26. axb4 {[%emt 0:00:08]} Bxb4 {[%emt 0:00:17]} 27. Bh5 {[%emt 0:00:18]} f5 {[%emt 0:05:12]} 28. Rd1 {[%emt 0:00:06]} Rxc2 {[%emt 0:01:19]} 29. Bf7 {[%emt 0:00:14]} Rc6 {[%emt 0:00:17]} 30. h4 {[%emt 0:03:54]} Kc7 {[%emt 0:01:11]} 31. Be8 {[%emt 0:02:06]} Rd6 {[%emt 0:00:56]} 32. Rxd6 {[%emt 0:01:08]} Kxd6 {[%emt 0:00:01]} 33. Kf1 {[%emt 0:00:11]} e5 {[%emt 0:02:52]} 34. Ba4 {[%emt 0:01:46]} h6 {[%emt 0:00:22]} 35. Be8 {[%emt 0:00:45]} Kd5 {[%emt 0:00:41]} 36. Bd7 {[%emt 0:01:35]} f4 {[%emt 0:00:15]} 37. Ke2 {[%emt 0:01:04]} Be7 {[%emt 0:00:50]} 38. h5 {[%emt 0:00:28]} Kd4 {[%emt 0:00:35]} 39. Bc6 {[%emt 0:00:21]} fxg3 {[%emt 0:02:01]} 40. fxg3 {[%emt 0:00:01]} Bg5 {[%emt 0:00:18]} 41. Kf2 {[%emt 0:31:03]} e3+ {[%emt 0:31:48]} 42. Ke2 {[%emt 0:00:07]} Kc5 {[%emt 0:00:08]} 43. Bf3 {[%emt 0:01:14]} b5 {[%emt 0:01:24]} 44. Kd3 {[%emt 0:00:14]} b4 {[%emt 0:00:51]} 45. Bd1 {[%emt 0:00:51]} e4+ {[%emt 0:00:00]} 46. Kc2 {[%emt 0:00:00]} Bf6 {[%emt 0:00:00]} 47. Kb3 {[%emt 0:00:00]} Be5 {[%emt 0:00:00]} 48. g4 {[%emt 0:00:00]} Bc3 {[%emt 0:00:00]} 0-1

[Event "WSTCC-65 2024"]
[Site "Krakow"]
[Date "2024.07.03"]
[Round "2.11"]
[White "Krupa, Krzysztof"]
[Black "Stebbings, Anthony J"]
[Result "0-1"]
[ECO "B40"]
[WhiteElo "1947"]
[BlackElo "2240"]
[Annotator "RC"]
[PlyCount "90"]
[EventDate "2024.07.01"]
[EventType "team-tourn"]
[EventCountry "POL"]
[SourceTitle "playchess.com"]
[Source "ChessBase"]
[SourceQuality "1"]
[TimeControl "40/5400+30:1800+30"]

1. e4 {[%emt 0:00:04]} c5 {[%emt 0:00:05]} 2. Nf3 {[%emt 0:00:12]} e6 {[%emt 0:00:06]} 3. c3 {[%emt 0:00:20]} Nf6 {[%emt 0:00:08]} 4. e5 {[%emt 0:00:30]} Nd5 {[%emt 0:00:07]} 5. d4 {[%emt 0:00:08]} cxd4 {[%emt 0:00:07]} 6. Qxd4 {[%emt 0:00:33]} Nc6 {[%emt 0:00:22]} 7. Qe4 {[%emt 0:00:04]} f5 {[%emt 0:02:26]} 8. Qe2 {[%emt 0:00:12]} Qc7 {[%emt 0:06:01]} 9. g3 {[%emt 0:00:42]} Nde7 {[%emt 0:03:52]} 10. Bg2 {[%emt 0:03:02]} Ng6 {[%emt 0:00:09]} 11. Bf4 {[%emt 0:00:49]} Nxf4 {[%emt 0:06:39]} 12. gxf4 {[%emt 0:01:33]} d6 {[%emt 0:03:54]} 13. Na3 {[%emt 0:04:41]} a6 {[%emt 0:03:32]} 14. Nc2 {[%emt 0:21:44]} dxe5 {[%emt 0:01:07]} 15. Nxe5 {[%emt 0:05:30]} Nxe5 {[%emt 0:13:08]} 16. fxe5 {[%emt 0:03:51]} Be7 {[%emt 0:04:32]} 17. f4 {[%emt 0:07:34]} Bh4+ {[%emt 0:01:14]} 18. Kf1 {[%emt 0:00:31]} O-O {[%emt 0:00:30]} 19. Nd4 {[%emt 0:02:31]} Bd7 {[%emt 0:02:00]} 20. Rd1 {[%emt 0:02:03]} Rad8 {[%emt 0:03:40]} 21. Rg1 {[%emt 0:05:01]} Bc8 {[%emt 0:03:51]} 22. Rd3 {[%emt 0:02:01]} Rf7 {[%emt 0:05:46]} 23. Qh5 {[%emt 0:04:30]} Be7 {[%emt 0:00:16]} 24. Rh3 {[%emt 0:05:43]} g6 {[%emt 0:09:24]} 25. Bf3 {[%emt 0:06:33]} Rg7 {[%emt 0:00:47]} 26. Qh6 {[%emt 0:03:04]} Qc4+ {[%emt 0:05:55]} 27. Be2 {[%emt 0:01:48]} Qxa2 {[%emt 0:00:24]} 28. Rhg3 {[%emt 0:02:48]} Bc5 {[%emt 0:04:55]} 29. Qh4 {[%emt 0:02:54]} Be7 {[%emt 0:03:34]} 30. Qh6 {[%emt 0:00:16]} Bc5 {[%emt 0:03:11]} 31. Qh4 {[%emt 0:01:21]} Rdd7 {[%emt 0:01:29]} 32. Rd3 {[%emt 0:05:03]} Qxb2 {[%emt 0:01:42]} 33. Qf6 {[%emt 0:02:40]} Bxd4 {[%emt 0:03:25]} 34. Qxe6+ {[%emt 0:01:00]} Rgf7 {[%emt 0:01:54]} 35. cxd4 {[%emt 0:02:05]} Qc1+ {[%emt 0:05:33]} 36. Kg2 {[%emt 0:00:03]} Qxf4 {[%emt 0:00:11]} 37. Qb3 {[%emt 0:01:39]} Rd8 {[%emt 0:02:24]} 38. e6 {[%emt 0:01:02]} Re7 {[%emt 0:00:01]} 39. d5 {[%emt 0:01:00]} b5 {[%emt 0:00:00]} 40. Qc3 {[%emt 0:01:09]} Bb7 {[%emt 0:00:49]} 41. Qf6 {[%emt 0:31:53]} Rxd5 {[%emt 0:01:58]} 42. Rf3 {[%emt 0:00:00]} Rd2 {[%emt 0:02:40]} 43. Kf2 {[%emt 0:00:00]} Bxf3 {[%emt 0:01:36]} 44. Rxg6+ {[%emt 0:00:00]} hxg6 {[%emt 0:00:05]} 45. Qxg6+ {[%emt 0:00:00]} Rg7 {[%emt 0:00:08]} 0-1

[Event "WSTCC-65 2024"]
[Site "Krakow"]
[Date "2024.07.03"]
[Round "2.11"]
[White "Hansch, Klaus-Michael"]
[Black "Irlik, Andrzej"]
[Result "1/2-1/2"]
[ECO "A45"]
[WhiteElo "1898"]
[BlackElo "1983"]
[Annotator "NA RC"]
[PlyCount "37"]
[EventDate "2024.07.01"]
[EventType "team-tourn"]
[EventCountry "POL"]
[SourceTitle "playchess.com"]
[Source "ChessBase"]
[SourceQuality "1"]
[TimeControl "40/5400+30:1800+30"]

1. d4 {[%emt 0:00:21]} Nf6 {[%emt 0:00:57]} 2. Nc3 {[%emt 0:00:48]} e6 {[%emt 0:01:39]} 3. e4 {[%emt 0:02:27]} Bb4 {[%emt 0:04:00]} 4. Bd3 {[%emt 0:01:53]} c5 {[%emt 0:25:19]} 5. dxc5 {[%emt 0:03:34]} Bxc3+ {[%emt 0:04:40]} 6. bxc3 {[%emt 0:00:07]} Qa5 {[%emt 0:00:57]} 7. Bd2 {[%emt 0:04:23]} Qxc5 {[%emt 0:01:04]} 8. Nf3 {[%emt 0:05:46]} Nc6 {[%emt 0:04:01]} 9. O-O {[%emt 0:02:21]} O-O {[%emt 0:10:52]} 10. Qe1 {[%emt 0:06:02]} b6 {[%emt 0:08:43]} 11. Be3 {[%emt 0:09:36]} Qa3 {[%emt 0:02:24]} 12. Bc1 {[%emt 0:02:30]} Qa5 {[%emt 0:05:49]} 13. Bd2 {[%emt 0:01:29]} Bb7 {[%emt 0:03:11]} 14. c4 {[%emt 0:03:53]} Qc5 {[%emt 0:02:13]} 15. Be3 {[%emt 0:00:34]} Qa3 {[%emt 0:03:11]} 16. Bc1 {[%emt 0:00:11]} Qc5 {[%emt 0:00:52]} 17. Be3 {[%emt 0:00:06]} Qa3 {[%emt 0:00:19]} 18. Bc1 {[%emt 0:00:07]} Qc5 {[%emt 0:00:05]} 19. Be3 1/2-1/2

[Event "WSTCC-65 2024"]
[Site "Krakow"]
[Date "2024.07.03"]
[Round "2.12"]
[White "Povah, Nigel E"]
[Black "Krupa, Jerzy"]
[Result "1-0"]
[ECO "A45"]
[WhiteElo "2179"]
[BlackElo "1885"]
[Annotator "RC"]
[PlyCount "40"]
[EventDate "2024.07.01"]
[EventType "team-tourn"]
[EventCountry "POL"]
[SourceTitle "playchess.com"]
[Source "ChessBase"]
[SourceQuality "1"]
[TimeControl "40/5400+30:1800+30"]

1. d4 {[%emt 0:00:07]} Nf6 {[%emt 0:00:05]} 2. Bf4 {[%emt 0:02:47]} e6 {[%emt 0:00:18]} 3. e3 {[%emt 0:00:18]} d5 {[%emt 0:04:35]} 4. Nd2 {[%emt 0:00:22]} Bd6 {[%emt 0:00:35]} 5. Bg3 {[%emt 0:00:14]} O-O {[%emt 0:02:32]} 6. Ngf3 {[%emt 0:01:53]} b6 {[%emt 0:02:18]} 7. Bd3 {[%emt 0:04:47]} Ba6 {[%emt 0:08:46]} 8. Bxa6 {[%emt 0:01:33]} Nxa6 {[%emt 0:00:02]} 9. c3 {[%emt 0:00:12]} c5 10. Qe2 {[%emt 0:00:53]} Nc7 {[%emt 0:01:44]} 11. Rd1 {[%emt 0:08:18]} cxd4 {[%emt 0:07:15]} 12. exd4 {[%emt 0:01:52]} Bxg3 {[%emt 0:06:37]} 13. hxg3 {[%emt 0:00:14]} Qd6 {[%emt 0:00:40]} 14. Ne5 {[%emt 0:03:53]} h6 {[%emt 0:21:33]} 15. f4 {[%emt 0:18:51]} Nce8 {[%emt 0:04:00]} 16. g4 {[%emt 0:02:10]} Nh7 {[%emt 0:05:42]} 17. g5 {[%emt 0:01:36]} hxg5 {[%emt 0:01:48]} 18. fxg5 {[%emt 0:14:24]} f6 {[%emt 0:03:40]} 19. Rxh7 {[%emt 0:01:26]} fxe5 {[%emt 0:00:45]} 20. Qh5 {[%emt 0:00:16]} Rf1+ 1-0

[Event "WSTCC-65 2024"]
[Site "Krakow"]
[Date "2024.07.03"]
[Round "2.12"]
[White "Roos, Jean-Luc"]
[Black "Dalling, Peter"]
[Result "1-0"]
[ECO "C55"]
[WhiteElo "2161"]
[BlackElo "1877"]
[Annotator "RC"]
[PlyCount "63"]
[EventDate "2024.07.01"]
[EventType "team-tourn"]
[EventCountry "POL"]
[SourceTitle "playchess.com"]
[Source "ChessBase"]
[SourceQuality "1"]
[TimeControl "40/5400+30:1800+30"]

1. e4 {[%emt 0:00:04]} e5 {[%emt 0:00:05]} 2. Nf3 {[%emt 0:00:07]} Nc6 {[%emt 0:00:04]} 3. Bc4 {[%emt 0:00:09]} Nf6 {[%emt 0:00:05]} 4. d3 {[%emt 0:00:11]} Be7 {[%emt 0:00:19]} 5. O-O {[%emt 0:00:40]} O-O {[%emt 0:00:26]} 6. Re1 {[%emt 0:01:01]} d6 {[%emt 0:00:29]} 7. c3 {[%emt 0:00:31]} Bg4 {[%emt 0:02:50]} 8. h3 {[%emt 0:00:54]} Be6 {[%emt 0:00:35]} 9. Nbd2 {[%emt 0:02:47]} Qd7 {[%emt 0:03:51]} 10. Nf1 {[%emt 0:08:56]} Na5 {[%emt 0:08:34]} 11. Bxe6 {[%emt 0:01:43]} fxe6 {[%emt 0:00:23]} 12. d4 {[%emt 0:02:32]} exd4 {[%emt 0:00:20]} 13. e5 {[%emt 0:02:10]} Nd5 {[%emt 0:04:58]} 14. exd6 {[%emt 0:09:04]} cxd6 {[%emt 0:03:51]} 15. Nxd4 {[%emt 0:01:35]} e5 {[%emt 0:04:21]} 16. Nb3 {[%emt 0:19:44]} Qb5 {[%emt 0:09:21]} 17. Nxa5 {[%emt 0:04:33]} Qxa5 {[%emt 0:00:13]} 18. Qb3 {[%emt 0:01:58]} Kh8 {[%emt 0:04:48]} 19. Bd2 {[%emt 0:09:48]} Qc5 {[%emt 0:10:37]} 20. Be3 {[%emt 0:01:22]} Qc6 {[%emt 0:06:35]} 21. Rad1 {[%emt 0:02:30]} Nf6 {[%emt 0:04:26]} 22. Bg5 {[%emt 0:01:02]} h6 {[%emt 0:04:18]} 23. Bxf6 {[%emt 0:00:17]} Rxf6 {[%emt 0:00:54]} 24. Ne3 {[%emt 0:00:19]} Rg6 {[%emt 0:03:17]} 25. Qf7 {[%emt 0:02:50]} Qe8 {[%emt 0:00:07]} 26. Qf5 {[%emt 0:02:32]} Rg5 {[%emt 0:03:15]} 27. Qe4 {[%emt 0:00:28]} Rg6 {[%emt 0:05:22]} 28. Nd5 {[%emt 0:02:32]} Rg5 {[%emt 0:11:24]} 29. Nc7 {[%emt 0:02:25]} Qc8 {[%emt 0:00:11]} 30. Nxa8 {[%emt 0:00:29]} Qxa8 {[%emt 0:00:03]} 31. f4 {[%emt 0:02:17]} Rg3 {[%emt 0:02:01]} 32. fxe5 {[%emt 0:00:45]} 1-0

[Event "WSTCC-65 2024"]
[Site "Krakow"]
[Date "2024.07.03"]
[Round "2.12"]
[White "Turecki, Stanislaw"]
[Black "Mueggenburg, Rolf"]
[Result "1-0"]
[ECO "B07"]
[WhiteElo "1873"]
[BlackElo "1777"]
[Annotator "NA RC"]
[PlyCount "59"]
[EventDate "2024.07.01"]
[EventType "team-tourn"]
[EventCountry "POL"]
[SourceTitle "playchess.com"]
[Source "ChessBase"]
[SourceQuality "1"]
[TimeControl "40/5400+30:1800+30"]

1. e4 {[%emt 0:00:08]} d6 {[%emt 0:01:05]} 2. d4 {[%emt 0:00:45]} Nf6 {[%emt 0:00:30]} 3. Nc3 {[%emt 0:00:30]} c6 {[%emt 0:02:36]} 4. Bd3 {[%emt 0:04:34]} e5 {[%emt 0:04:39]} 5. Nf3 {[%emt 0:04:16]} Bg4 {[%emt 0:03:03]} 6. dxe5 {[%emt 0:01:41]} dxe5 {[%emt 0:00:26]} 7. h3 {[%emt 0:00:37]} Bxf3 {[%emt 0:01:07]} 8. Qxf3 {[%emt 0:00:24]} Nbd7 {[%emt 0:02:42]} 9. Be3 {[%emt 0:02:09]} Bc5 {[%emt 0:03:01]} 10. O-O-O {[%emt 0:02:44]} Bd4 {[%emt 0:02:28]} 11. Ne2 {[%emt 0:01:12]} Qb6 {[%emt 0:04:02]} 12. Bxd4 {[%emt 0:02:46]} exd4 {[%emt 0:00:30]} 13. Qg3 {[%emt 0:01:29]} O-O-O {[%emt 0:04:49]} 14. Qxg7 {[%emt 0:11:42]} Rhg8 {[%emt 0:02:25]} 15. Qxf7 {[%emt 0:00:31]} c5 {[%emt 0:05:01]} 16. g3 {[%emt 0:06:02]} Ne5 {[%emt 0:01:35]} 17. Qb3 {[%emt 0:00:38]} Qc6 {[%emt 0:05:35]} 18. Qb5 Qc7 19. f4 {[%emt 0:10:43]} a6 {[%emt 0:01:00]} 20. Qa4 {[%emt 0:02:21]} Nc6 {[%emt 0:01:26]} 21. g4 {[%emt 0:06:22]} Nd7 {[%emt 0:00:30]} 22. g5 {[%emt 0:01:43]} Nb6 {[%emt 0:02:40]} 23. c4 {[%emt 0:00:53]} Na5 {[%emt 0:01:35]} 24. Qc2 {[%emt 0:00:21]} Nc6 {[%emt 0:03:52]} 25. a3 {[%emt 0:00:44]} a5 {[%emt 0:02:03]} 26. Rdf1 {[%emt 0:01:44]} a4 {[%emt 0:03:18]} 27. Kb1 {[%emt 0:04:35]} Na5 {[%emt 0:01:41]} 28. Ng3 {[%emt 0:04:18]} Qf7 {[%emt 0:04:28]} 29. e5 {[%emt 0:00:35]} Naxc4 {[%emt 0:00:37]} 30. e6 {[%emt 0:00:16]} 1-0

[Event "WSTCC-65 2024"]
[Site "Krakow"]
[Date "2024.07.03"]
[Round "2.13"]
[White "Ftacnik, Lubomir"]
[Black "Meulders, Richard"]
[Result "1-0"]
[ECO "A88"]
[WhiteElo "2452"]
[BlackElo "2154"]
[Annotator "TA"]
[PlyCount "49"]
[EventDate "2024.07.01"]
[EventType "team-tourn"]
[EventCountry "POL"]
[SourceTitle "playchess.com"]
[Source "ChessBase"]
[SourceQuality "1"]
[TimeControl "40/5400+30:1800+30"]

{[%evp 16,49,41,45,75,73,91,80,83,85,79,82,92,81,84,84,79,54,60,53,99,48,85,59,225,226,678,683,716,444,576,579,541,535,648,647]} 1. d4 {[%emt 0:00:04]} f5 {[%emt 0:00:19]} 2. Nf3 {[%emt 0:00:08]} Nf6 {[%emt 0:00:06]} 3. g3 {[%emt 0:00:07]} g6 {[%emt 0:00:30]} 4. c4 {[%emt 0:00:20]} Bg7 {[%emt 0:00:43]} 5. Bg2 {[%emt 0:00:02]} O-O {[%emt 0:00:25]} 6. O-O {[%emt 0:00:08]} d6 {[%emt 0:00:44]} 7. Nc3 {[%emt 0:00:11]} c6 {[%emt 0:02:57]} 8. b4 {[%emt 0:00:37]} Ne4 {[%emt 0:01:59]} 9. Bb2 {[%emt 0:00:45]} Na6 {[%emt 0:11:37]} 10. Qb3 {[%emt 0:06:41]} Kh8 {[%emt 0:03:03]} 11. Rad1 {[%emt 0:10:27]} d5 {[%emt 0:13:22] White is better.} 12. cxd5 {[%emt 0:09:41]} cxd5 {[%emt 0:06:55]} 13. Ne5 {[%emt 0:03:54]} (13. Nxd5 $2 Be6 14. Qa3 Qxd5 $19 (14... Bxd5 $2 15. Ne5 $19)) 13... Nc7 {[%emt 0:11:35]} 14. Nxe4 {[%emt 0:12:09]} fxe4 {[%emt 0:04:33]} 15. f3 {[%emt 0:01:01]} Be6 {[%emt 0:01:00]} 16. fxe4 {[%emt 0:06:32]} Rxf1+ {[%emt 0:01:48]} 17. Rxf1 {[%emt 0:05:34]} dxe4 {[%emt 0:00:08]} (17... Bxe5 $14 {should be considered.} 18. dxe5 dxe4) 18. Qc2 {[%emt 0:08:26]} (18. Qxe6 $16 Nxe6 19. Nf7+ Kg8 20. Nxd8 Rxd8 21. e3) 18... Kg8 {[%emt 0:07:35] Prevents Nf7} 19. Qxe4 {[%emt 0:04:02][%cal Oe5g6] [#] Nxg6! is the strong threat. White is much more active.} Bxa2 $2 {[%emt 0:00:43] A mistake that costs the game.} (19... Bd5 $14 20. Qf4 Qd6) 20. Qxb7 $18 {[%emt 0:03:09]} Bd5 {[%emt 0:08:42]} (20... Bxe5 21. dxe5 Bd5 22. Qxc7 Qxc7 23. Bxd5+ e6 24. Bxa8 a5) 21. Bxd5+ {[%emt 0:04:21] White is clearly winning.} (21. Qxc7 Qxc7 22. Bxd5+ e6 23. Bxa8 Bxe5 24. dxe5 Qb6+ 25. Kg2 Qxb4 $18) 21... Nxd5 {[%emt 0:00:10]} 22. Qc6 {[%emt 0:02:02]} Bxe5 {[%emt 0:01:02]} 23. Qe6+ {[%emt 0:02:04]} ({Worse is} 23. dxe5 Qb6+ 24. Qxb6 axb6 $17) 23... Kh8 {[%emt 0:00:35] [#] ...Bf6 would now be deadly.} 24. Qxe5+ {[%emt 0:01:12]} ({Not} 24. dxe5 Qb6+ 25. Qxb6 axb6 $18) 24... Nf6 {[%emt 0:00:13]} 25. d5 {[%emt 0:01:35] Weighted Error Value: White=0.29 (precise) /Black=0.81.  Loses game:     	---       	Black=1      Mistake:       	White=1     	Black=2      Inaccurate:     	White=1     	Black=1      OK:         	White=6     	Black=3      Best:        	White=2     	Black=1} 1-0

[Event "WSTCC-65 2024"]
[Site "Krakow"]
[Date "2024.07.03"]
[Round "2.13"]
[White "Westerinen, Heikki M.J."]
[Black "Quinn, John M"]
[Result "1/2-1/2"]
[ECO "B40"]
[WhiteElo "2221"]
[BlackElo "2073"]
[Annotator "TA"]
[PlyCount "41"]
[EventDate "2024.07.01"]
[EventType "team-tourn"]
[EventCountry "POL"]
[SourceTitle "playchess.com"]
[Source "ChessBase"]
[SourceQuality "1"]
[TimeControl "40/5400+30:1800+30"]

{[%evp 12,41,30,0,9,-11,-16,-6,-2,-8,0,-14,-12,-11,0,-18,0,-8,8,6,16,5,10,8,13,13,22,4,6,7,11,0]} 1. e4 {[%emt 0:00:09]} c5 {[%emt 0:00:05]} 2. Nf3 {[%emt 0:00:13]} e6 {[%emt 0:00:07]} 3. b3 {[%emt 0:00:22]} Nf6 {[%emt 0:03:23]} 4. e5 {[%emt 0:01:09]} Nd5 {[%emt 0:00:04]} 5. Bb2 {[%emt 0:01:39]} Nc6 {[%emt 0:01:02]} 6. Nc3 {[%emt 0:13:02]} Nxc3 {[%emt 0:03:05]} 7. Bxc3 {[%emt 0:00:25]} Be7 {[%emt 0:03:48] The position is equal.} 8. Bb5 {[%emt 0:07:28]} Qc7 {[%emt 0:08:53]} 9. O-O {[%emt 0:04:10]} b6 {[%emt 0:06:28]} 10. Qe2 {[%emt 0:06:40]} Bb7 {[%emt 0:04:29]} 11. Ba6 {[%emt 0:01:34]} Bxa6 {[%emt 0:01:12]} 12. Qxa6 {[%emt 0:00:04]} O-O {[%emt 0:00:08]} 13. Qc4 {[%emt 0:03:19]} f6 {[%emt 0:08:49]} 14. Rae1 {[%emt 0:05:32]} fxe5 {[%emt 0:11:41]} 15. Nxe5 {[%emt 0:01:08]} Nxe5 {[%emt 0:00:24]} 16. Bxe5 {[%emt 0:00:23]} Bd6 {[%emt 0:00:05]} 17. Qc3 {[%emt 0:08:35]} Bxe5 {[%emt 0:02:13]} 18. Rxe5 {[%emt 0:00:24]} Rf6 {[%emt 0:03:53]} 19. Rfe1 {[%emt 0:06:45]} Raf8 {[%emt 0:04:50]} 20. f3 {[%emt 0:03:50]} Rf4 {[%emt 0:11:52]} 21. R5e4 {[%emt 0:08:30] An uneventful encounter.   Weighted Error Value: White=0.08 (flawless) /Black=0.04 (flawless) .  OK:         	White=3     	Black=8} 1/2-1/2

[Event "WSTCC-65 2024"]
[Site "Krakow"]
[Date "2024.07.03"]
[Round "2.13"]
[White "Chubar, Vladimir"]
[Black "Idesis, Yaacov"]
[Result "1/2-1/2"]
[ECO "D03"]
[WhiteElo "1836"]
[BlackElo "1879"]
[Annotator "NA RC"]
[PlyCount "36"]
[EventDate "2024.07.01"]
[EventType "team-tourn"]
[EventCountry "POL"]
[SourceTitle "playchess.com"]
[Source "ChessBase"]
[SourceQuality "1"]
[TimeControl "40/5400+30:1800+30"]

1. d4 {[%emt 0:00:41]} d5 {[%emt 0:00:40]} 2. Nf3 {[%emt 0:04:10]} Nf6 {[%emt 0:02:17]} 3. Bg5 {[%emt 0:00:58]} c6 {[%emt 0:00:24]} 4. Nbd2 {[%emt 0:02:08]} Bf5 {[%emt 0:02:20]} 5. e3 {[%emt 0:05:51]} e6 {[%emt 0:02:43]} 6. Be2 {[%emt 0:02:15]} Be7 {[%emt 0:00:31]} 7. O-O {[%emt 0:04:28]} Nbd7 {[%emt 0:00:57]} 8. Nh4 {[%emt 0:03:07]} Bg6 {[%emt 0:00:22]} 9. Nxg6 {[%emt 0:04:27]} hxg6 {[%emt 0:00:04]} 10. c4 {[%emt 0:02:27]} Nh5 {[%emt 0:00:42]} 11. Bxe7 {[%emt 0:01:28]} Qxe7 12. cxd5 exd5 {[%emt 0:02:53]} 13. b4 {[%emt 0:06:06]} Nhf6 {[%emt 0:00:22]} 14. h3 {[%emt 0:02:08]} O-O {[%emt 0:04:26]} 15. Qb3 {[%emt 0:03:45]} Ne4 {[%emt 0:04:26]} 16. Nxe4 {[%emt 0:04:33]} Qxe4 {[%emt 0:01:04]} 17. a4 {[%emt 0:02:45]} Qe6 18. b5 Rfd8 1/2-1/2